Cogmind - Beta 13 @@@ ROGUE MODE // 2024.04.06 @ 19:47:04 Player: Ciaphas Result: Destroyed by D-53 Grenadier with Mini Grenade Launcher Performance ------------- Evolutions (0) 0 Regions Visited (4) 800 Robots Destroyed (24) 120 Value Destroyed (484) 484 Prototype IDs (26) 520 Alien Tech Used (0) 0 Bonus (280) 280 TOTAL SCORE: 2204 Bonus ------- Aligned with FarCom 300 Friendly Fire -20 Cogmind --------- Core Integrity 0/250 Matter 300/300 Energy 12/100 System Corruption 0% Temperature Warm (138) Movement Core (450) Ox8 Location -9/Mines Parts ------- > --- POWER (1) -------- (None) > --- PROPULSION (2) --- (None) > --- UTILITY (2) ------ Improved Heat Sink Large Storage Unit > --- WEAPON (2) ------- Advanced Beam Cannon > --- INVENTORY (15) --- Small Storage Unit Lightpack 2.0 High-capacity Matter Pod (200) Signal Interpreter Targeting Computer Light Armor Plating Hardened Light Armor Plating Hacking Suite Advanced Beam Cannon Grenade Launcher Datajack Mining Laser Peak State ------------ > --- POWER ------------ Ion Engine > --- PROPULSION ------- Light Treads Light Treads > --- UTILITY ---------- Improved Heat Sink Large Storage Unit > --- WEAPON ----------- Advanced Beam Cannon Advanced Beam Cannon > --- INVENTORY -------- Small Storage Unit Lightpack 2.0 High-capacity Battery High-capacity Matter Pod Signal Interpreter Targeting Computer Light Armor Plating Hardened Light Armor Plating Hacking Suite Advanced Beam Cannon Grenade Launcher Datajack Mining Laser [Rating: 17] Favorites ----------- Power Ion Engine Engine Ion Engine Propulsion Light Treads Treads Light Treads Leg Aluminum Leg Utility Large Storage Unit Device Cooling System Storage Large Storage Unit Processor Targeting Computer Weapon Advanced Beam Cannon Energy Gun Improved Medium Laser Energy Cannon Advanced Beam Cannon Ballistic Gun Assault Rifle Launcher Grenade Launcher Build | -11 -10 -10 -10 -9 ------- Run | Yrd Mat Min Exi Min Slots Evolved . | . . . . . Power . | . . . . . Propulsion . | . . . . . Utility . | . . . . . Weapon . | . . . . . Parts Attached 17 | 3 7 2 . 5 Power 1 | 1 . . . . Engine 1 | 1 . . . . Core . | . . . . . Reactor . | . . . . . Propulsion 2 | 2 . . . . Treads 2 | 2 . . . . Leg . | . . . . . Wheel . | . . . . . Hover . | . . . . . Flight . | . . . . . Utility 4 | . 3 . . 1 Device 2 | . 1 . . 1 Storage 1 | . 1 . . . Processor 1 | . 1 . . . Hackware . | . . . . . Protection . | . . . . . Artifact . | . . . . . Weapon 10 | . 4 2 . 4 Energy Gun 2 | . 2 . . . Energy Cannon 5 | . 2 1 . 2 Ballistic Gun . | . . . . . Ballistic Cannon . | . . . . . Launcher 3 | . . 1 . 2 Special Weapon . | . . . . . Impact Weapon . | . . . . . Slashing Weapon . | . . . . . Piercing Weapon . | . . . . . Special Melee Weapon . | . . . . . Unidentified Prototypes 2 | . 2 . . . Parts Lost 3 | . . . . 3 Power . | . . . . . Propulsion 2 | . . . . 2 Utility . | . . . . . Weapon 1 | . . . . 1 Highest Loss Streak 3 | . . . . 3 To Critical Strikes . | . . . . . Average Slot Usage (%) 99 | . 98 100 100 98 Engine 13 | . 14 14 14 13 Treads 27 | . 28 28 28 27 Device 11 | . 8 14 14 14 Storage 14 | . 14 14 14 14 Processor 1 | . 4 . . . Energy Gun 3 | . 10 . . . Energy Cannon 23 | . 16 27 28 28 Naked Turns . | . . . . . Heaviest Build 35 | 14 35 35 35 35 Greatest Support 40 | 40 40 40 40 40 Greatest Overweight (x) . | . . . . . Average Overweight (x) . | . . . . . Largest Inventory Capacity 15 | 8 15 15 15 15 Average Capacity 13 | 8 10 15 15 15 Most Carried 15 | 6 10 12 15 15 Average Carried 10 | 2 7 10 13 14 Final Capacity 15 | 8 15 15 15 15 Final Carried 15 | 2 10 12 15 14 Class Distribution -------------------- 100% | Mutant Dominant Class ---------------- Mutant | -10/Materials Mutant | -10/Mines Mutant | -10/Exiles Mutant | -9/Mines Resources | -11 -10 -10 -10 -9 ----------- Run | Yrd Mat Min Exi Min Matter Collected 691 | 248 250 100 . 93 Remotely . | . . . . . Salvage Created 765 | 98 340 12 . 315 Parts 44 | 4 19 3 . 18 Haulers Intercepted . | . . . . . Recyclers Shooed 3 | 1 2 . . . Parts Field Recycled . | . . . . . Retrieved Matter . | . . . . . Parts Self-Destructed . | . . . . . Prevented . | . . . . . Kills | -11 -10 -10 -10 -9 ------- Run | Yrd Mat Min Exi Min Combat Hostiles Destroyed 18 | . 2 3 . 13 Guns 2 | . 2 . . . Cannons 11 | . . 1 . 10 AOE 5 | . . 2 . 3 Classes Destroyed 8 | 2 3 1 . 2 Tunneler 1 | 1 . . . . Recycler 5 | 1 3 . . 1 Operator 1 | . 1 . . . Watcher 2 | . 2 . . . Swarmer 10 | . . 3 . 7 Grunt 4 | . 2 . . 2 Duelist 1 | . . . . 1 Assembled 3 | . . . . 3 Best Kill Streak 4 | 2 3 3 . 4 Combat Bots Only 4 | . 2 3 . 4 Max Kills in Single Turn 2 | 1 1 2 . 2 Gunslinging . | . . . . . Exploded 2 | . . 2 . 2 Melee . | . . . . . Uniques/NPCs Destroyed . | . . . . . Combat | -11 -10 -10 -10 -9 -------- Run | Yrd Mat Min Exi Min Hostile Shots Fired 72 | . 5 12 . 55 Missed 18 | . 1 4 . 13 Damage Taken 883 | . 60 133 . 690 Core 253 | . 27 47 . 179 Absorbed by Shields . | . . . . . Core Remaining (%) 100 | 100 . . . . Volleys Fired 46 | 3 12 7 . 24 Largest 2 | 2 2 2 . 2 Hottest 136 | 40 136 136 . 136 Shots Fired 86 | 6 24 12 . 44 Gun 18 | 6 12 . . . Cannon 62 | . 12 10 . 40 Launcher 6 | . . 2 . 4 Special . | . . . . . Kinetic 6 | 6 . . . . Thermal 74 | . 24 10 . 40 Explosive 6 | . . 2 . 4 Electromagnetic . | . . . . . Robot Hit Streak 9 | 3 7 9 . 5 Robot Miss Streak 4 | 1 1 4 . 2 Penetration Max . | . . . . . Secondary Targets . | . . . . . Shots Hit Robots 42 | 4 16 4 . 18 Core Hits 30 | 3 9 2 . 16 Critical Kills . | . . . . . Critical Parts Destroyed . | . . . . . Critical Strikes 1 | . 1 . . . Burn 1 | . 1 . . . Melee Attacks . | . . . . . Impact . | . . . . . Slashing . | . . . . . Piercing . | . . . . . Sneak Attacks . | . . . . . Combat Hostiles . | . . . . . Follow-up Attacks . | . . . . . Damage Inflicted 1153 | 48 309 140 . 656 Guns 184 | 48 136 . . . Cannons 666 | . 170 83 . 413 Explosions 300 | . . 57 . 243 Melee . | . . . . . Ramming 3 | . 3 . . . Kinetic 48 | 48 . . . . Thermal 802 | . 306 83 . 413 Explosive 300 | . . 57 . 243 Electromagnetic . | . . . . . Impact . | . . . . . Slashing . | . . . . . Piercing . | . . . . . Highest Corruption . | . . . . . Average Corruption . | . . . . . Corruption Purged . | . . . . . Corruption Blocked . | . . . . . Overload Shots . | . . . . . Overflow Damage 30 | . 13 14 . 3 Projectiles 30 | . 13 14 . 3 Explosions . | . . . . . Melee . | . . . . . Knockbacks . | . . . . . Impact . | . . . . . Kinetic . | . . . . . Secondary . | . . . . . Self-Inflicted Damage 69 | . . 69 . . Shots 2 | . . 2 . . Rammed 2 | . 2 . . . Targets Rammed 2 | . 2 . . . Kicked . | . . . . . Crushed . | . . . . . Highest Temperature 195 | . 195 45 . 138 Average Temperature 54 | . 66 22 . 51 Received Heat Transfer 131 | . 51 . . 80 Siege Activations . | . . . . . Robots Corrupted . | . . . . . Combat Hostiles . | . . . . . Parts Fried . | . . . . . Impact Corruptions . | . . . . . Robots Melted . | . . . . . Combat Hostiles . | . . . . . Parts Melted 3 | . 3 . . . Heat Transferred 1554 | . 666 148 . 740 Parts Sabotaged . | . . . . . Parts Stolen . | . . . . . Parts Stripped . | . . . . . Power Chain Reactions . | . . . . . Alert | -11 -10 -10 -10 -9 ------- Run | Yrd Mat Min Exi Min Peak Influence 200 | 10 99 196 . 200 Initial 6 | . 6 . . . Average 52 | 7 39 9 . 126 Maximum Alert Level 1 | . . . . 1 Low Security (%) 99 | 100 100 100 . 96 Level 1 . | . . . . 3 Level 2 . | . . . . . Level 3 . | . . . . . Level 4 . | . . . . . Level 5 . | . . . . . High Security . | . . . . . Max Security . | . . . . . Squads Dispatched . | . . . . . Investigation . | . . . . . Extermination . | . . . . . Reinforcement . | . . . . . Assault . | . . . . . Garrison . | . . . . . Intercept . | . . . . . Searches Triggered . | . . . . . Construction Impeded . | . . . . . Haulers Reinforced . | . . . . . Active Scanning Responses . | . . . . . Cargo Convoy Interrupts . | . . . . . Stealth | -11 -10 -10 -10 -9 --------- Run | Yrd Mat Min Exi Min Distress Signals . | . . . . . Communications Jammed . | . . . . . Distress Signals . | . . . . . Times Spotted 30 | . 5 3 . 22 Peak Tracking Total 7 | . 2 3 . 7 Tactical Retreats 2 | . . . . 2 Traps | -11 -10 -10 -10 -9 ------- Run | Yrd Mat Min Exi Min Traps Triggered . | . . . . . Indirectly . | . . . . . Trap Hack Attempts . | . . . . . Triggered . | . . . . . Disarmed . | . . . . . Reprogrammed . | . . . . . Reused . | . . . . . Traps Extracted . | . . . . . Installed . | . . . . . Triggered . | . . . . . Machines | -11 -10 -10 -10 -9 ---------- Run | Yrd Mat Min Exi Min Machines Disabled 9 | . . 8 . 1 Max in Single Turn 4 | . . 4 . 1 Machines Repaired . | . . . . . Machines Dismantled . | . . . . . Machines Sabotaged . | . . . . . Overloaded Fab Kills . | . . . . . Hacking | -11 -10 -10 -10 -9 --------- Run | Yrd Mat Min Exi Min Machines Accessed 9 | . 7 . 2 . Terminals 6 | . 6 . . . Fabricators . | . . . . . Repair Stations . | . . . . . Recycling Units 1 | . 1 . . . Scanalyzers . | . . . . . Garrison Access . | . . . . . Total Hacks 23 | . 21 . 2 . Successful 13 | . 11 . 2 . Failed 9 | . 9 . . . Catastrophic . | . . . . . Database Lockouts 1 | . 1 . . . Manual 20 | . 19 . 1 . Terminals 20 | . 20 . . . Fabricators . | . . . . . Repair Stations . | . . . . . Recycling Units 1 | . 1 . . . Scanalyzers . | . . . . . Garrison Access . | . . . . . Terminal Hacks 9 | . 7 . 2 . Record 1 | . . . 1 . Robot Analysis 1 | . 1 . . . Prototype ID Bank 1 | . 1 . . . Terminal Index 1 | . 1 . . . Locate Traps 2 | . 2 . . . Patrol Status 1 | . 1 . . . Zone Layout 1 | . 1 . . . Derelict Proto ID Bank 1 | . . . 1 . Fabricator Hacks . | . . . . . Repair Station Hacks . | . . . . . Recycling Unit Hacks 1 | . 1 . . . Report Inventory 1 | . 1 . . . Scanalyzer . | . . . . . Garrison Access Hacks . | . . . . . Unauthorized Hacks 3 | . 3 . . . Terminals 3 | . 3 . . . Botnet 2 | . 2 . . . Operators 1 | . 1 . . . Fabricators . | . . . . . Repair Stations . | . . . . . Recycling Units . | . . . . . Scanalyzers . | . . . . . Garrison Access . | . . . . . Data Cores Recovered . | . . . . . Used . | . . . . . Hacking Detections 5 | . 5 . . . Full Trace Events . | . . . . . Feedback Events . | . . . . . Feedback Blocked . | . . . . . Robot Schematics Acquired . | . . . . . Robots Built . | . . . . . Authchips . | . . . . . Time . | . . . . . Total Robot Build Rating . | . . . . . Part Schematics Acquired . | . . . . . Parts Built . | . . . . . Authchips . | . . . . . Time . | . . . . . Total Part Build Rating . | . . . . . Parts Repaired . | . . . . . Time . | . . . . . Parts Recycled . | . . . . . Recycled Matter . | . . . . . Retrieved Matter . | . . . . . Retrieved Components . | . . . . . Parts Scanalyzed . | . . . . . Part Schematics Acquired . | . . . . . Parts Damaged . | . . . . . Bothacking | -11 -10 -10 -10 -9 ------------ Run | Yrd Mat Min Exi Min Used RIF Installer . | . . . . . Robots Hacked . | . . . . . Non-combat . | . . . . . Combat . | . . . . . Robot Hacks Applied . | . . . . . Relay Couplers Released . | . . . . . Fabnet Peak Effective % . | . . . . . Robots Rewired . | . . . . . Allies Hacked . | . . . . . Hacks Repelled . | . . . . . Allies | -11 -10 -10 -10 -9 -------- Run | Yrd Mat Min Exi Min Total Allies . | . . . . . Largest Group . | . . . . . Highest-Rated Group . | . . . . . Highest-Rated Ally . | . . . . . Total Orders . | . . . . . Ally Attacks . | . . . . . Total Damage . | . . . . . Kills . | . . . . . Allies Corrupted . | . . . . . Allies Melted . | . . . . . Intel | -11 -10 -10 -10 -9 ------- Run | Yrd Mat Min Exi Min Robot Analysis Total 1 | . 1 . . . Derelict Logs Recovered 3 | . . 3 . . Drone Launches . | . . . . . Drone Recoveries . | . . . . . Exploration | -11 -10 -10 -10 -9 ------------- Run | Yrd Mat Min Exi Min Turns Passed 2499 | 45 893 608 406 547 Spaces Moved 1433 | 19 502 366 254 292 Core . | . . . . . Treads 1433 | 19 502 366 254 292 Legs . | . . . . . Wheels . | . . . . . Hover . | . . . . . Flight . | . . . . . Fastest Speed 160 | 160 160 160 160 160 Average Speed 160 | 160 160 160 160 160 Slowest Speed 160 | 160 160 160 160 160 Overloaded Moves . | . . . . . Propulsion Burnouts . | . . . . . Robots Hopped . | . . . . . Cave-ins Triggered . | . . . . . Exploration Rate (%) 51 | 3 62 79 63 52 Regions Visited 4 Branch Regions 3 Pre-discovered Areas 1 | . . . 1 . Known Exits Taken . | . . . . . Unknown Exits Taken 4 | 1 1 1 1 . Scrap Searched 2 | . . 2 . . Spaces Dug . | . . . . . Terrain Destroyed 36 | . . 6 . 30 Melee . | . . . . . Projectile . | . . . . . AOE 36 | . . 6 . 30 Terrain Rammed . | . . . . . Walls Destroyed . | . . . . . Machines Disabled . | . . . . . Actions | -11 -10 -10 -10 -9 --------- Run | Yrd Mat Min Exi Min Total 1555 | 28 570 376 254 327 Wait 29 | . 25 . . 4 Move 1429 | 18 501 365 253 292 Hop . | . . . . . Pick Up 14 | . 11 2 1 . Fast Attach 7 | . 6 . . 1 Attach . | . . . . . Detach 4 | . 4 . . . Swap 10 | 3 1 2 . 4 Drop 14 | 4 8 . . 2 Fire 46 | 3 12 7 . 24 Melee . | . . . . . Ram . | . . . . . Kick . | . . . . . Crush 2 | . 2 . . . Escape Stasis . | . . . . . Rewire . | . . . . . Trap . | . . . . . Miscellaneous . | . . . . . Route ------- -11/Scrapyard -10/Materials (discovered 3 exits: [*Mat x2] / [*Min]) -10/Mines (discovered 2 exits: [*Mat] / *Exi) -10/Exiles -9/Mines History --------- Turn | Location | Event 17 | -11/Scrapyard | Discovered new exit (range 3) 46 | -11/Scrapyard | Entered Materials 316 | -10/Materials | Build established: Mutant 388 | -10/Materials | Discovered new exit (range 16) 569 | -10/Materials | Discovered new exit (range 13) 572 | -10/Materials | Central database locked down 742 | -10/Materials | Discovered new exit (range 16) 939 | -10/Materials | Entered Mines 949 | -10/Mines | Learned location of 1 exit from Materials 954 | -10/Mines | Met a Derelict bent on vengeance 1008 | -10/Mines | Discovered new exit (range 15) 1111 | -10/Mines | Found a hidden stash of uninstalled traps 1411 | -10/Mines | Learned Materials terminal intel 1448 | -10/Mines | Learned 4 Materials zone layouts 1539 | -10/Mines | Deemed a non-threat by the Exiles lab entrance 1541 | -10/Mines | Discovered new exit (range 5) 1547 | -10/Mines | Entered Exiles 1584 | -10/Exiles | Met 8R-AWN 1615 | -10/Exiles | Met EX-HEX 1683 | -10/Exiles | Met EX-DEC 1691 | -10/Exiles | Learned location of Zion (-6) 1719 | -10/Exiles | Met EX-BIN 1741 | -10/Exiles | Aligned with FarCom system 1743 | -10/Exiles | Given EX-Vault access code 1779 | -10/Exiles | Opened EX-Vault 1792 | -10/Exiles | Found Lightpack 2.0 1828 | -10/Exiles | Warned to stay clear of 0b10 Research branches 1845 | -10/Exiles | Exiles lab attacked by MAIN.C 1939 | -10/Exiles | Discovered new exit (range 11) 1953 | -10/Exiles | Left Exiles lab with Lightpack 2.0 1953 | -10/Exiles | Entered Mines 2037 | -9/Mines | Assembled infested the area 2042 | -9/Mines | Assisted by a Guerilla fighting off Assembled 2207 | -9/Mines | Core integrity fell below 50% 2496 | -9/Mines | Core integrity fell below 20% 2500 | -9/Mines | Destroyed by D-53 Grenadier with Mini Grenade Launcher Last Messages --------------- 02145_ Acquired 46 matter. 02148_ Dropped Cooling System. 02149_ Acquired Imp. Heat Sink. 02203_ Destroyed Asb. Hover Unit. 02206_ as-80424 destroyed. 02209_ Acquired 20 matter. 02216_ Acquired 14 matter. 02248_ Acquired 6 matter. 02337_ as-56569 destroyed. 02456_ Pulverizer disabled. 02479_ Ion Engine severed. 02483_ L-31 Rogue destroyed. 02485_ G-34 Mercenary destroyed. 02486_ Lgt. Treads destroyed. 02489_ G-47 Trooper destroyed. 02492_ Core Extractor disabled. 02495_ G-34 Mercenary destroyed. 02498_ Dropped Hcp. Battery. 02498_ Lgt. Treads destroyed. 02500_ Adv. Beam Cannon destroyed. Map ----- +----------------------------------------------------+ | | | | | | | | | ?????????????????????????????????????????????????? | | ???????????????####????????????????????????###???? | | ???????????????# ?????????####????????## #??? | | ????????????#### ???###### ##???????# ##? | | ????????????? % ### ## ##??????# ## | | ????????????? "" % #####???# | | ???????????????# """ ## ##### | | ???????????????? """???# ## # | | ???????????????? "?????# """t ## ### ## | | ????????????????????????## """ ### ## #?# ### | | ????????????????????????## "" #?## ### #?# #?# | | ????????????????????????# ##??## #?# #?# #?# | | ???????????????????????## ##????# #?# #?# #?# | | ???????????????????????# #?????# #?# #?# #?# | | ???????????????????????# #?????# #?# ### #?# | | ???????????????????????###*d ##?????# #?# #?# | | ??????????????????????####!d##??????#% #?##### #?# | | ?????????????????????## # %=##??????# #???### #?# | | ???????????????####### ##?##### #???# #?? | | ??????????????## ## !% #?# #???# ###?? | | ??????????????# # ##?# ######???# #???? | | ??????????????# @ #?# #????????# ##### | | ??????????????## # #?#%#????????# # | | ???????????????### ????????# ### # | | ?????????????????## """ %#??????# #?# # | | ??????????????????# # """ % % =???? #?# # | | ??????????????????# ####### """ ???????####?# | | ??????????????????## #??????? ?????????#??### | | ???????????????????# #???????? ?????????? ???# | | ???????????????????# #?????????####?????????# ### | | ???????????????????# #?????????????????# #### # | | ???????????????????# ##?????????????????# | | ???????????????????###???????????????????## # = | | ????????????????????????????????????????????## [ | | ?????????????????????????????????????????????## | | ??????????????????????????????????????????????# | | ??????????????????????????????????????????????## | | ???????????????????????????????????????????????# | | ???????????????????????????????????????????????### | | ?????????????????????????????????????????????????# | | ?????????????????????????????????????????????????? | | ?????????????????????????????????????????????????? | | ?????????????????????????????????????????????????? | | ?????????????????????????????????????????????????? | | ???????????????????????? ????????????????????????? | | ??????????????????????# ??##???????????????????? | +----------------------------------------------------+ Best States ------------- Heat Dissipation 47 Energy Generation 10 Energy Capacity 250 Matter Stores 300 Matter Capacity 300 Sight Range 16 Terrain Scan Density 10 Evasion (%) 40 Targeting Accuracy 5 Recoil Reduction 2 Item Schematics ----------------- None Robot Schematics ------------------ None Fabricated ------------ Nothing Alien Tech Used ----------------- None Achievements -------------- None Challenges ------------ None Game ------ Seed PoweredGammaTendrils Manual? 0 Play Time 00:18:55 Cumulative 16.3 hours Start 2024.04.06 @ 19:29:41 End 2024.04.06 @ 19:47:04 Sessions 1 Manual Loads 0 Difficulty Rogue Special Mode None Game No. 27 Rogue 27 Adventurer 0 Explorer 0 Win Type - Total 0 Types 0/0/0/0/0/0/0/0/0 Lore% 21 Gallery% 19 Achievement% 26 Wizard Run 0 Options --------- Layout 0 ASCII 0 Keyboard 0 Movement Numpad Keybinds 0 Fullscreen 2 Font 24/Proggy Map View 76x50 Zoom Use 0% Tactical HUD 1 Map Filters NONE Filters NONE Steam 1 RUN: b632db4f-c60a-40db-a004-e4ed987aabdb